fUSD/lending_fUSD_20250120
["ID","MTS","AMOUNT","RATE_DAILY","PERIOD"]
[349690655,1737377473436,-952.22,0.00020821,2]
[349690656,1737377473446,-582.05,0.00020821,2]
[349690657,1737377473455,-3658.7,0.00020821,2]
[349690658,1737377473465,-1103.21,0.00020821,2]
[349690659,1737377473474,-1237.78,0.00020821,2]
[349690660,1737377473484,-298.68649831,0.00020821,2]
[349690661,1737377473493,-500.0,0.00020821,2]
[349690662,1737377473502,-993.94,0.00020821,2]
[349690663,1737377473512,-1503.85,0.00020821,2]
[349690664,1737377473524,-1228.19,0.00020821,2]
[349690665,1737377473533,-639.92,0.00020821,2]
[349690666,1737377473543,-1377.98,0.00020821,2]
[349690667,1737377473552,-500.0,0.00020821,2]
[349690668,1737377473562,-530.1,0.00020821,2]
[349690669,1737377473571,-500.0,0.00020821,2]
[349690670,1737377473581,-1560.84,0.00020821,2]
[349690671,1737377473591,-500.0,0.00020821,2]
[349690672,1737377473601,-752.57,0.00020821,2]
[349690673,1737377473611,-1797.36,0.00020821,2]
[349690674,1737377473620,-3077.66,0.00020821,2]
[349690675,1737377473630,-876.3,0.00020821,2]
[349690676,1737377473639,-714.91,0.00020821,2]
[349690677,1737377473648,-1303.67,0.00020821,2]
[349690678,1737377473658,-876.98,0.00020821,2]
[349690679,1737377473668,-2597.81,0.00020821,2]
[349690680,1737377473679,-1827.08,0.00020821,2]
[349690681,1737377473689,-1615.3,0.00020821,2]
[349690682,1737377473698,-500.0,0.00020821,2]
[349690683,1737377473708,-2483.31,0.00020821,2]
[349690684,1737377473717,-2780.47,0.00020821,2]
[349690685,1737377473727,-500.0,0.00020821,2]
[349690686,1737377473736,-3105.24,0.00020821,2]
[349690687,1737377473746,-1130.17,0.00020821,2]
[349690688,1737377473756,-1288.7,0.00020821,2]
[349690689,1737377473766,-647.49,0.00020821,2]
[349690690,1737377473780,-3353.58,0.00020821,2]
[349690691,1737377473789,-1811.0,0.00020821,2]
[349690692,1737377473798,-1109.6,0.00020821,2]
[349690693,1737377473807,-500.0,0.00020821,2]
[349690694,1737377473817,-500.0,0.00020821,2]
[349690695,1737377473827,-751.49,0.00020821,2]
[349690696,1737377473836,-944.91,0.00020821,2]
[349690697,1737377473845,-500.0,0.00020821,2]
[349690698,1737377473854,-899.05,0.00020821,2]
[349690699,1737377473864,-3103.59,0.00020821,2]
[349690700,1737377473873,-1871.8,0.00020821,2]
[349690701,1737377473883,-1086.25,0.00020821,2]
[349690702,1737377473894,-2312.31,0.00020821,2]
[349690703,1737377473904,-3725.5,0.00020821,2]
[349690704,1737377473914,-500.0,0.00020821,2]
[349690705,1737377473923,-500.0,0.00020821,2]
[349690706,1737377473933,-1721.32,0.00020821,2]
[349690707,1737377473942,-3500.19,0.00020821,2]
[349690708,1737377473952,-548.89594362,0.00020821,2]
[349690709,1737377473962,-1374.5,0.00020821,2]
[349690710,1737377473972,-500.0,0.00020821,2]
[349690711,1737377473982,-1285.87,0.00020821,2]
[349690712,1737377473991,-1008.2,0.00020821,2]
[349690713,1737377474000,-500.0,0.00020821,2]
[349690714,1737377474010,-500.0,0.00020821,2]
[349690715,1737377474023,-572.39,0.00020821,2]
[349690716,1737377474034,-1238.99,0.00020821,2]
[349690717,1737377474043,-500.0,0.00020821,2]
[349690718,1737377474052,-500.0,0.00020821,2]
[349690719,1737377474063,-500.0,0.00020821,2]
[349690720,1737377474072,-4448.38,0.00020821,2]
[349690721,1737377474082,-500.0,0.00020821,2]
[349690722,1737377474091,-500.0,0.00020821,2]
[349690723,1737377474102,-1222.11,0.00020821,2]
[349690724,1737377474111,-936.38,0.00020821,2]
[349690725,1737377474121,-500.0,0.00020821,2]
[349690726,1737377474131,-1024.64,0.00020821,2]
[349690727,1737377474142,-500.0,0.00020821,2]
[349690728,1737377474151,-4455.07,0.00020821,2]
[349690729,1737377474161,-634.84,0.00020821,2]
[349690730,1737377474170,-500.0,0.00020821,2]
[349690731,1737377474180,-500.0,0.00020821,2]
[349690732,1737377474190,-500.0,0.00020821,2]
[349690733,1737377474200,-1718.2,0.00020821,2]
[349690734,1737377474210,-1517.42,0.00020821,2]
[349690735,1737377474219,-500.0,0.00020821,2]
[349690736,1737377474228,-500.0,0.00020821,2]
[349690737,1737377474238,-500.0,0.00020821,2]
[349690738,1737377474247,-881.03,0.00020821,2]
[349690739,1737377474257,-500.0,0.00020821,2]
[349690740,1737377474266,-183.02051158,0.00020821,2]
[349690741,1737377474278,-204.71864207,0.00020823,2]
[349690742,1737377474287,-159.934,0.000209,2]
[349690743,1737377474297,-2100.0,0.000209,7]
[349690744,1737377474307,-500.0,0.00020901,2]
[349690745,1737377474316,-500.0,0.00020901,2]
[349690746,1737377474326,-500.0,0.00020901,2]
[349690747,1737377474336,-505.86,0.00020901,2]
[349690748,1737377474345,-725.93,0.00020901,2]
[349690749,1737377474355,-208.42219996,0.00020901,2]
[349690750,1737377474365,-500.0,0.00020901,2]
[349690751,1737377474374,-1112.19,0.00020901,2]
[349690752,1737377474384,-500.0,0.00020901,2]
[349690753,1737377474394,-2796.22,0.00020901,2]
[349690754,1737377474403,-500.0,0.00020901,2]
[349690755,1737377474412,-500.0,0.00020901,2]
[349690756,1737377474422,-500.0,0.00020901,2]
[349690757,1737377474432,-527.51302907,0.00020901,2]
[349690758,1737377474441,-500.0,0.00020901,2]
[349690759,1737377474451,-860.7,0.00020901,2]
[349690760,1737377474460,-746.27,0.00020901,2]
[349690761,1737377474470,-500.0,0.00020901,2]
[349690762,1737377474479,-500.0,0.00020901,2]
[349690763,1737377474489,-500.0,0.00020901,2]
[349690764,1737377474498,-656.76,0.00020901,2]
[349690765,1737377474508,-500.0,0.00020901,2]
[349690766,1737377474518,-500.0,0.00020901,2]
[349690767,1737377474529,-500.0,0.00020901,2]
[349690768,1737377474538,-844.35,0.00020901,2]
[349690769,1737377474547,-500.0,0.00020901,2]
[349690770,1737377474557,-500.0,0.00020901,2]
[349690771,1737377474567,-500.0,0.00020901,2]
[349690772,1737377474577,-500.0,0.00020901,2]
[349690773,1737377474586,-554.98,0.00020901,2]
[349690774,1737377474596,-500.0,0.00020901,2]
[349690775,1737377474605,-706.13,0.00020901,2]
[349690776,1737377474614,-500.0,0.00020901,2]
[349690777,1737377474624,-500.0,0.00020901,2]
[349690778,1737377474634,-700.5,0.00020901,2]
[349690779,1737377474644,-500.0,0.00020901,2]
[349690780,1737377474654,-817.82,0.00020901,2]
[349690781,1737377474663,-500.0,0.00020901,2]
[349690782,1737377474672,-500.0,0.00020901,2]
[349690783,1737377474682,-840.73,0.00020901,2]
[349690784,1737377474692,-500.0,0.00020901,2]
[349690785,1737377474702,-978.26,0.00020901,2]
[349690786,1737377474711,-807.37,0.00020901,2]
[349690787,1737377474721,-535.23,0.00020901,2]
[349690788,1737377474730,-911.36,0.00020901,2]
[349690789,1737377474740,-918.51,0.00020901,2]
[349690790,1737377474749,-500.0,0.00020901,2]
[349690791,1737377474759,-761.42,0.00020901,2]
[349690792,1737377474768,-611.47956126,0.00020901,2]
[349690793,1737377474779,-500.0,0.00020901,2]
[349690794,1737377474789,-2935.79,0.00020901,2]
[349690795,1737377474798,-500.0,0.00020901,2]
[349690796,1737377474809,-4234.6,0.00020901,2]
[349690797,1737377474819,-766.29,0.00020901,2]
[349690798,1737377474828,-727.87,0.00020901,2]
[349690799,1737377474838,-3864.35,0.00020901,2]
[349690800,1737377474848,-500.0,0.00020901,2]
[349690801,1737377474857,-500.0,0.00020901,2]
[349690802,1737377474867,-1299.27,0.00020901,2]
[349690803,1737377474877,-3588.13,0.00020901,2]
[349690804,1737377474887,-2046.38,0.00020901,2]
[349690805,1737377474896,-1932.2,0.00020901,2]
[349690806,1737377474906,-576.23,0.00020901,2]
[349690807,1737377474916,-458.62,0.00020901,2]
[349690808,1737377474926,-1757.51,0.00020901,2]
[349690809,1737377474936,-1791.29,0.00020901,2]
[349690810,1737377474946,-2156.53,0.00020901,2]
[349690811,1737377474956,-2141.05,0.00020901,2]
[349690812,1737377474966,-1660.42,0.00020901,2]
[349690813,1737377474976,-500.0,0.00020901,2]
[349690814,1737377474985,-1133.61,0.00020901,2]
[349690815,1737377474995,-555.92,0.00020901,2]
[349690816,1737377475005,-2180.96,0.00020901,2]
[349690817,1737377475015,-645.51,0.00020901,2]
[349690818,1737377475030,-561.67,0.00020901,2]
[349690819,1737377475041,-2173.11,0.00020901,2]
[349690820,1737377475051,-500.0,0.00020901,2]
[349690821,1737377475063,-1564.48,0.00020901,2]
[349690822,1737377475072,-500.0,0.00020901,2]
[349690823,1737377475082,-1133.54,0.00020901,2]
[349690824,1737377475091,-1145.98,0.00020901,2]
[349690825,1737377475101,-500.0,0.00020901,2]
[349690826,1737377475111,-752.83,0.00020901,2]
[349690827,1737377475120,-500.0,0.00020901,2]
[349690828,1737377475130,-500.0,0.00020901,2]
[349690829,1737377475140,-560.53,0.00020901,2]
[349690830,1737377475149,-766.9,0.00020901,2]
[349690831,1737377475158,-500.0,0.00020901,2]
[349690832,1737377475168,-500.0,0.00020901,2]
[349690833,1737377475177,-660.28,0.00020901,2]
[349690834,1737377475187,-943.53,0.00020901,2]
[349690835,1737377475196,-1337.38,0.00020901,2]
[349690836,1737377475206,-771.84,0.00020901,2]
[349690837,1737377475216,-500.0,0.00020901,2]
[349690838,1737377475225,-500.0,0.00020901,2]
[349690839,1737377475235,-1005.87,0.00020901,2]
[349690840,1737377475245,-1060.85,0.00020901,2]
[349690841,1737377475255,-500.0,0.00020901,2]
[349690842,1737377475264,-500.0,0.00020901,2]
[349690843,1737377475276,-980.61,0.00020901,2]
[349690844,1737377475409,-874.79,0.00020901,2]
[349690845,1737377475418,-1402.18,0.00020901,2]
[349690846,1737377475428,-500.0,0.00020901,2]
[349690847,1737377475438,-1129.67,0.00020901,2]
[349690848,1737377475447,-535.06,0.00020901,2]
[349690849,1737377475457,-2752.84,0.00020901,2]
[349690850,1737377475467,-4702.34,0.00020951,2]
[349690851,1737377475476,-7842.41690614,0.00020959,2]
[349690852,1737377475486,-204.71864207,0.00020977,2]
[349690853,1737377475495,-1340.5827597,0.00020985,2]
[349690854,1737377475505,-1899.38,0.00021,3]
[349690855,1737377475514,-500.0,0.00021,7]
[349690856,1737377475526,-500.0,0.00021,7]
[349690857,1737377475535,-500.0,0.00021,7]
[349690858,1737377475544,-500.0,0.00021,7]
[349690859,1737377475554,-500.0,0.00021,7]
[349690860,1737377475563,-21991.54082465,0.00021,2]
[349690861,1737377475573,-1691.2,0.00021041,2]
[349690862,1737377475582,-284.7,0.00021057,2]
[349690863,1737377475592,-513.17635972,0.00021095,2]
[349690864,1737377475601,-500.0,0.00021095,2]
[349690865,1737377475610,-546.17,0.00021095,2]
[349690866,1737377475620,-500.0,0.00021095,2]
[349690867,1737377475630,-500.0,0.00021095,2]
[349690868,1737377475639,-500.0,0.00021095,2]
[349690869,1737377475649,-500.0,0.00021095,2]
[349690870,1737377475659,-574.45,0.00021095,2]
[349690871,1737377475668,-258.16032906,0.00021095,2]
[349690872,1737377475678,-500.0,0.00021095,2]
[349690873,1737377475687,-796.95,0.00021095,2]
[349690874,1737377475696,-500.0,0.00021095,2]
[349690875,1737377475706,-500.0,0.00021095,2]
[349690876,1737377475715,-500.0,0.00021095,2]
[349690877,1737377475724,-622.67,0.00021095,2]
[349690878,1737377475734,-500.0,0.00021095,2]
[349690879,1737377475743,-500.0,0.00021095,2]
[349690880,1737377475752,-500.0,0.00021095,2]
[349690881,1737377475761,-500.0,0.00021095,2]
[349690882,1737377475773,-500.0,0.00021095,2]
[349690883,1737377475784,-500.0,0.00021095,2]
[349690884,1737377475794,-500.0,0.00021095,2]
[349690885,1737377475804,-322.46005771,0.00021095,2]
[349690886,1737377475813,-638.44,0.00021095,2]
[349690887,1737377475823,-500.0,0.00021095,2]
[349690888,1737377475833,-500.0,0.00021095,2]
[349690889,1737377475843,-500.0,0.00021095,2]
[349690890,1737377475853,-606.47,0.00021095,2]
[349690891,1737377475863,-500.0,0.00021095,2]
[349690892,1737377475872,-754.5,0.00021095,2]
[349690893,1737377475882,-526.69,0.00021095,2]
[349690894,1737377475892,-500.0,0.00021095,2]
[349690895,1737377475901,-500.0,0.00021095,2]
[349690896,1737377475910,-500.0,0.00021095,2]
[349690897,1737377475920,-500.0,0.00021095,2]
[349690898,1737377475930,-686.68,0.00021095,2]
[349690899,1737377475940,-500.0,0.00021095,2]
[349690900,1737377475949,-500.0,0.00021095,2]
[349690901,1737377475959,-500.0,0.00021095,2]
[349690902,1737377475968,-500.0,0.00021095,2]
[349690903,1737377475978,-500.0,0.00021095,2]
[349690904,1737377475987,-172.72204773,0.00021095,2]
[349690905,1737377475996,-500.0,0.00021095,2]
[349690906,1737377476006,-500.0,0.00021095,2]
[349690907,1737377476016,-500.0,0.00021095,2]
[349690908,1737377476032,-837.57,0.00021095,2]
[349690909,1737377476041,-500.0,0.00021095,2]
[349690910,1737377476050,-515.04958124,0.00021095,2]
[349690911,1737377476060,-500.0,0.00021095,2]
[349690912,1737377476069,-500.0,0.00021095,2]
[349690913,1737377476080,-500.0,0.00021095,2]
[349690914,1737377476089,-895.09,0.00021095,2]
[349690915,1737377476100,-1166.48,0.00021095,2]
[349690916,1737377476109,-992.96,0.00021095,2]
[349690917,1737377476119,-500.0,0.00021095,2]
[349690918,1737377476128,-500.0,0.00021095,2]
[349690919,1737377476137,-1201.46,0.00021095,2]
[349690920,1737377476146,-500.0,0.00021095,2]
[349690921,1737377476155,-500.0,0.00021095,2]
[349690922,1737377476165,-500.0,0.00021095,2]
[349690923,1737377476174,-533.19,0.00021095,2]
[349690924,1737377476183,-500.0,0.00021095,2]
[349690925,1737377476192,-641.20432204,0.00021095,2]
[349690926,1737377476201,-500.0,0.00021095,2]
[349690927,1737377476211,-500.0,0.00021095,2]
[349690928,1737377476220,-500.0,0.00021095,2]
[349690929,1737377476229,-1289.76,0.00021095,2]
[349690930,1737377476238,-204.04880849,0.00021095,2]
[349690931,1737377476248,-743.97,0.00021095,2]
[349690932,1737377476258,-500.0,0.00021095,2]
[349690933,1737377476267,-500.0,0.00021095,2]
[349690934,1737377476281,-486.68389218,0.00021095,2]
[349690935,1737377476291,-500.0,0.00021095,2]
[349690936,1737377476300,-771.55,0.00021095,2]
[349690937,1737377476309,-1230.0,0.00021095,2]
[349690938,1737377476319,-500.0,0.00021095,2]
[349690939,1737377476328,-500.0,0.00021095,2]
[349690940,1737377476338,-500.0,0.00021095,2]
[349690941,1737377476348,-500.0,0.00021095,2]
[349690942,1737377476357,-500.0,0.00021095,2]
[349690943,1737377476367,-500.0,0.00021095,2]
[349690944,1737377476380,-500.0,0.00021095,2]
[349690945,1737377476389,-500.0,0.00021095,2]
[349690946,1737377476400,-500.0,0.00021095,2]
[349690947,1737377476411,-500.0,0.00021095,2]
[349690948,1737377476421,-500.0,0.00021095,2]
[349690949,1737377476431,-370.51784183,0.00021095,2]
[349690950,1737377476441,-500.0,0.00021095,2]
[349690951,1737377476451,-500.0,0.00021095,2]
[349690952,1737377476461,-1612.66,0.00021095,2]
[349690953,1737377476471,-500.0,0.00021095,2]
[349690954,1737377476481,-192.01320334,0.00021095,2]
[349690955,1737377476491,-536.54,0.00021095,2]
[349690956,1737377476502,-3644.75,0.00021095,2]
[349690957,1737377476512,-227.31087681,0.00021095,2]
[349690958,1737377476529,-500.0,0.00021095,2]
[349690959,1737377476539,-500.0,0.00021095,2]
[349690960,1737377476549,-626.19,0.00021095,2]
[349690961,1737377476560,-500.0,0.00021095,2]
[349690962,1737377476570,-756.469785,0.00021095,2]
[349690963,1737377476580,-500.0,0.00021095,2]
[349690964,1737377476590,-500.0,0.00021095,2]
[349690965,1737377476601,-1134.53,0.00021095,2]
[349690966,1737377476611,-5822.0,0.00021095,2]
[349690967,1737377476620,-732.04,0.00021095,2]
[349690968,1737377476630,-500.0,0.00021095,2]
[349690969,1737377476640,-1092.62,0.00021095,2]
[349690970,1737377476650,-923.97,0.00021095,2]
[349690971,1737377476660,-970.989995,0.00021095,2]
[349690972,1737377476670,-500.0,0.00021095,2]
[349690973,1737377476679,-1139.04,0.00021095,2]
[349690974,1737377476689,-1401.76,0.00021095,2]
[349690975,1737377476698,-500.0,0.00021095,2]
[349690976,1737377476708,-500.0,0.00021095,2]
[349690977,1737377476717,-500.0,0.00021095,2]
[349690978,1737377476727,-2199.52,0.00021095,2]
[349690979,1737377476737,-1107.27,0.00021095,2]
[349690980,1737377476746,-500.0,0.00021095,2]
[349690981,1737377476756,-500.0,0.00021095,2]
[349690982,1737377476768,-1073.92,0.00021095,2]
[349690983,1737377476782,-574.83,0.00021095,2]
[349690984,1737377476791,-500.0,0.00021095,2]
[349690985,1737377476801,-3230.06,0.00021095,2]
[349690986,1737377476811,-500.0,0.00021095,2]
[349690987,1737377476820,-500.0,0.00021095,2]
[349690988,1737377476830,-500.0,0.00021095,2]
[349690989,1737377476840,-952.22,0.00021095,2]
[349690990,1737377476849,-582.05,0.00021095,2]
[349690991,1737377476859,-3658.7,0.00021095,2]
[349690992,1737377476868,-1103.21,0.00021095,2]
[349690993,1737377476878,-1237.78,0.00021095,2]
[349690994,1737377476887,-500.0,0.00021095,2]
[349690995,1737377476896,-993.94,0.00021095,2]
[349690996,1737377476906,-1503.85,0.00021095,2]
[349690997,1737377476916,-1228.19,0.00021095,2]
[349690998,1737377476926,-639.92,0.00021095,2]
[349690999,1737377476935,-1377.98,0.00021095,2]
[349691000,1737377476944,-500.0,0.00021095,2]
[349691001,1737377476955,-530.1,0.00021095,2]
[349691002,1737377476965,-500.0,0.00021095,2]
[349691003,1737377476974,-1560.84,0.00021095,2]
[349691004,1737377476983,-500.0,0.00021095,2]
[349691005,1737377476994,-752.57,0.00021095,2]
[349691006,1737377477003,-1797.36,0.00021095,2]
[349691007,1737377477012,-3077.66,0.00021095,2]
[349691008,1737377477030,-876.3,0.00021095,2]
[349691009,1737377477039,-714.91,0.00021095,2]
[349691010,1737377477049,-1303.67,0.00021095,2]
[349691011,1737377477059,-876.98,0.00021095,2]
[349691012,1737377477068,-2597.81,0.00021095,2]
[349691013,1737377477077,-1827.08,0.00021095,2]
[349691014,1737377477087,-1615.3,0.00021095,2]
[349691015,1737377477096,-500.0,0.00021095,2]
[349691016,1737377477106,-2483.31,0.00021095,2]
[349691017,1737377477115,-2780.47,0.00021095,2]
[349691018,1737377477124,-500.0,0.00021095,2]
[349691019,1737377477133,-3105.24,0.00021095,2]
[349691020,1737377477143,-1130.17,0.00021095,2]
[349691021,1737377477152,-1288.7,0.00021095,2]
[349691022,1737377477161,-647.49,0.00021095,2]
[349691023,1737377477170,-3353.58,0.00021095,2]
[349691024,1737377477179,-1811.0,0.00021095,2]
[349691025,1737377477188,-1109.6,0.00021095,2]
[349691026,1737377477197,-500.0,0.00021095,2]
[349691027,1737377477207,-500.0,0.00021095,2]
[349691028,1737377477215,-751.49,0.00021095,2]
[349691029,1737377477224,-944.91,0.00021095,2]
[349691030,1737377477234,-500.0,0.00021095,2]
[349691031,1737377477243,-899.05,0.00021095,2]
[349691032,1737377477252,-3103.59,0.00021095,2]
[349691033,1737377477261,-1871.8,0.00021095,2]
[349691034,1737377477270,-1086.25,0.00021095,2]
[349691035,1737377477281,-2312.31,0.00021095,2]
[349691036,1737377477291,-3725.5,0.00021095,2]
[349691037,1737377477301,-500.0,0.00021095,2]
[349691038,1737377477311,-500.0,0.00021095,2]
[349691039,1737377477320,-1721.32,0.00021095,2]
[349691040,1737377477329,-3500.19,0.00021095,2]
[349691041,1737377477338,-1374.5,0.00021095,2]
[349691042,1737377477347,-500.0,0.00021095,2]
[349691043,1737377477357,-1285.87,0.00021095,2]
[349691044,1737377477367,-1008.2,0.00021095,2]
[349691045,1737377477377,-500.0,0.00021095,2]
[349691046,1737377477386,-500.0,0.00021095,2]
[349691047,1737377477396,-572.39,0.00021095,2]
[349691048,1737377477405,-1238.99,0.00021095,2]
[349691049,1737377477415,-500.0,0.00021095,2]
[349691050,1737377477424,-500.0,0.00021095,2]
[349691051,1737377477434,-500.0,0.00021095,2]
[349691052,1737377477443,-4448.38,0.00021095,2]
[349691053,1737377477452,-500.0,0.00021095,2]
[349691054,1737377477461,-500.0,0.00021095,2]
[349691055,1737377477471,-1222.11,0.00021095,2]
[349691056,1737377477482,-936.38,0.00021095,2]
[349691057,1737377477491,-500.0,0.00021095,2]
[349691058,1737377477500,-1024.64,0.00021095,2]
[349691059,1737377477509,-500.0,0.00021095,2]
[349691060,1737377477519,-4455.07,0.00021095,2]
[349691061,1737377477533,-634.84,0.00021095,2]
[349691062,1737377477542,-500.0,0.00021095,2]
[349691063,1737377477551,-500.0,0.00021095,2]
[349691064,1737377477561,-500.0,0.00021095,2]
[349691065,1737377477571,-1718.2,0.00021095,2]
[349691066,1737377477581,-1517.42,0.00021095,2]
[349691067,1737377477591,-500.0,0.00021095,2]
[349691068,1737377477600,-500.0,0.00021095,2]
[349691069,1737377477609,-500.0,0.00021095,2]
[349691070,1737377477618,-881.03,0.00021095,2]
[349691071,1737377477627,-500.0,0.00021095,2]
[349691072,1737377477637,-2057.0,0.000211,2]
[349691073,1737377477647,-204.71864207,0.00021131,2]
[349691074,1737377477656,-506.24799734,0.00021142,2]
[349691075,1737377477665,-1037.10875049,0.00021168,5]
[349691076,1737377477797,-152.51,0.00021172,2]
[349691077,1737377477808,-500.0,0.00021175,2]
[349691078,1737377477818,-500.0,0.00021175,2]
[349691079,1737377477827,-500.0,0.00021175,2]
[349691080,1737377477838,-505.86,0.00021175,2]
[349691081,1737377477847,-725.93,0.00021175,2]
[349691082,1737377477856,-308.20284933,0.00021175,2]
[349691083,1737377477865,-1112.19,0.00021175,2]
[349691084,1737377477875,-500.0,0.00021175,2]
[349691085,1737377477884,-2796.22,0.00021175,2]
[349691086,1737377477893,-500.0,0.00021175,2]
[349691087,1737377477902,-500.0,0.00021175,2]
[349691088,1737377477912,-500.0,0.00021175,2]
[349691089,1737377477921,-500.0,0.00021175,2]
[349691090,1737377477930,-860.7,0.00021175,2]
[349691091,1737377477940,-746.27,0.00021175,2]
[349691092,1737377477950,-500.0,0.00021175,2]
[349691093,1737377477959,-500.0,0.00021175,2]
[349691094,1737377477968,-656.76,0.00021175,2]
[349691095,1737377477978,-500.0,0.00021175,2]
[349691096,1737377477987,-500.0,0.00021175,2]
[349691097,1737377477996,-500.0,0.00021175,2]
[349691098,1737377478006,-844.35,0.00021175,2]
[349691099,1737377478015,-500.0,0.00021175,2]
[349691100,1737377478028,-500.0,0.00021175,2]
[349691101,1737377478037,-500.0,0.00021175,2]
[349691102,1737377478047,-295.07,0.00021175,2]
[349691103,1737377478058,-554.98,0.00021175,2]
[349691104,1737377478069,-500.0,0.00021175,2]
[349691105,1737377478079,-706.13,0.00021175,2]
[349691106,1737377478088,-500.0,0.00021175,2]
[349691107,1737377478097,-500.0,0.00021175,2]
[349691108,1737377478108,-700.5,0.00021175,2]
[349691109,1737377478118,-500.0,0.00021175,2]
[349691110,1737377478127,-817.82,0.00021175,2]
[349691111,1737377478137,-500.0,0.00021175,2]
[349691112,1737377478146,-500.0,0.00021175,2]
[349691113,1737377478157,-840.73,0.00021175,2]
[349691114,1737377478167,-377.46924135,0.00021175,2]
[349691115,1737377478177,-978.26,0.00021175,2]
[349691116,1737377478187,-807.37,0.00021175,2]
[349691117,1737377478197,-535.23,0.00021175,2]
[349691118,1737377478206,-911.36,0.00021175,2]
[349691119,1737377478216,-918.51,0.00021175,2]
[349691120,1737377478226,-500.0,0.00021175,2]
[349691121,1737377478236,-761.42,0.00021175,2]
[349691122,1737377478245,-500.0,0.00021175,2]
[349691123,1737377478256,-2935.79,0.00021175,2]
[349691124,1737377478265,-500.0,0.00021175,2]
[349691125,1737377478279,-4234.6,0.00021175,2]
[349691126,1737377478289,-766.29,0.00021175,2]
[349691127,1737377478299,-727.87,0.00021175,2]
[349691128,1737377478308,-3864.35,0.00021175,2]
[349691129,1737377478318,-500.0,0.00021175,2]
[349691130,1737377478327,-500.0,0.00021175,2]
[349691131,1737377478337,-1299.27,0.00021175,2]
[349691132,1737377478347,-3588.13,0.00021175,2]
[349691133,1737377478357,-2046.38,0.00021175,2]
[349691134,1737377478367,-1932.2,0.00021175,2]
[349691135,1737377478377,-576.23,0.00021175,2]
[349691136,1737377478387,-1757.51,0.00021175,2]
[349691137,1737377478397,-1791.29,0.00021175,2]
[349691138,1737377478407,-2156.53,0.00021175,2]
[349691139,1737377478416,-2141.05,0.00021175,2]
[349691140,1737377478426,-1660.42,0.00021175,2]
[349691141,1737377478438,-528.70322812,0.00021175,2]
[349691142,1737377478447,-1133.61,0.00021175,2]
[349691143,1737377478457,-555.92,0.00021175,2]
[349691144,1737377478467,-2180.96,0.00021175,2]
[349691145,1737377478478,-645.51,0.00021175,2]
[349691146,1737377478487,-561.67,0.00021175,2]
[349691147,1737377478498,-2173.11,0.00021175,2]
[349691148,1737377478508,-500.0,0.00021175,2]
[349691149,1737377478517,-1564.48,0.00021175,2]
[349691150,1737377478529,-500.0,0.00021175,2]
[349691151,1737377478539,-1133.54,0.00021175,2]
[349691152,1737377478550,-1145.98,0.00021175,2]
[349691153,1737377478560,-500.0,0.00021175,2]
[349691154,1737377478570,-752.83,0.00021175,2]